fUSD/lending_fUSD_20250820
["ID","MTS","AMOUNT","RATE_DAILY","PERIOD"]
[380346989,1755699579445,-400.0,0.0003041,120]
[380346990,1755699579510,-1739.71,0.0003041,120]
[380346991,1755699579570,-1396.22,0.0003041,120]
[380346992,1755699579637,-2673.12,0.0003041,120]
[380346993,1755699579699,-1140.38,0.0003041,120]
[380346994,1755699579758,-400.0,0.0003041,120]
[380346995,1755699579819,-400.0,0.0003041,120]
[380346996,1755699579881,-1335.4,0.0003041,120]
[380346997,1755699579943,-400.0,0.0003041,120]
[380346998,1755699580004,-982.52,0.0003041,120]
[380346999,1755699580066,-798.05,0.0003041,120]
[380347000,1755699580125,-400.0,0.0003041,120]
[380347001,1755699580188,-400.0,0.0003041,120]
[380347002,1755699580248,-450.82,0.0003041,120]
[380347003,1755699580309,-2439.04,0.0003041,120]
[380347004,1755699580366,-4554.72,0.0003041,120]
[380347005,1755699580424,-1668.92,0.0003041,120]
[380347006,1755699580490,-2792.05,0.0003041,120]
[380347007,1755699580549,-487.13,0.0003041,120]
[380347008,1755699580610,-400.0,0.0003041,120]
[380347009,1755699580670,-400.0,0.0003041,120]
[380347010,1755699580734,-2688.58,0.0003041,120]
[380347011,1755699580791,-458.3,0.0003041,120]
[380347012,1755699580850,-400.0,0.0003041,120]
[380347013,1755699580913,-408.21,0.0003041,120]
[380347014,1755699580983,-3215.17,0.0003041,120]
[380347015,1755699581043,-1714.26,0.0003041,120]
[380347016,1755699581102,-1351.55,0.0003041,120]
[380347017,1755699581160,-400.0,0.0003041,120]
[380347018,1755699581221,-1653.66,0.0003041,120]
[380347019,1755699581279,-1347.63,0.0003041,120]
[380347020,1755699581341,-1113.72,0.0003041,120]
[380347021,1755699581401,-400.0,0.0003041,120]
[380347022,1755699581460,-472.72,0.0003041,120]
[380347023,1755699581523,-4981.99,0.0003041,60]
[380347024,1755699581582,-400.0,0.0003041,120]
[380347025,1755699581640,-1715.79,0.0003041,120]
[380347026,1755699581698,-5062.88,0.0003041,120]
[380347027,1755699581753,-400.0,0.0003041,120]
[380347028,1755699581810,-400.0,0.0003041,120]
[380347029,1755699581864,-1720.75,0.0003041,120]
[380347030,1755699581922,-1445.01,0.0003041,120]
[380347031,1755699581983,-952.49,0.0003041,120]
[380347032,1755699582040,-545.64,0.0003041,120]
[380347033,1755699582101,-252.84474593,0.0003041,120]
[380347034,1755699582167,-1474.65,0.0003041,120]
[380347035,1755699582234,-1793.54,0.0003041,120]
[380347036,1755699582290,-400.0,0.0003041,120]
[380347037,1755699582350,-2198.78,0.0003041,120]
[380347038,1755699582412,-400.0,0.0003041,120]
[380347039,1755699582472,-626.7,0.0003041,120]
[380347040,1755699582530,-400.0,0.0003041,120]
[380347041,1755699582584,-861.76,0.0003041,120]
[380347042,1755699583167,-1732.16,0.0003041,120]
[380347043,1755699583225,-1140.51,0.0003041,120]
[380347044,1755699583288,-3268.81,0.0003041,120]
[380347045,1755699583353,-721.19,0.0003041,120]
[380347046,1755699583417,-1029.32,0.0003041,120]
[380347047,1755699583483,-400.0,0.0003041,120]
[380347048,1755699583544,-400.0,0.0003041,120]
[380347049,1755699583601,-400.0,0.0003041,120]
[380347050,1755699583667,-1636.35,0.0003041,120]
[380347051,1755699583730,-1884.44,0.0003041,120]
[380347052,1755699583789,-400.0,0.0003041,120]
[380347053,1755699583850,-400.0,0.0003041,120]
[380347054,1755699583908,-556.03,0.0003041,120]
[380347055,1755699583965,-1594.56,0.0003041,120]
[380347056,1755699584025,-1444.22,0.0003041,120]
[380347057,1755699584088,-1680.18,0.0003041,120]
[380347058,1755699584152,-400.0,0.0003041,120]
[380347059,1755699584213,-1294.5,0.0003041,120]
[380347060,1755699584278,-2063.27,0.0003041,120]
[380347061,1755699584341,-400.0,0.0003041,120]
[380347062,1755699584413,-1341.07,0.0003041,120]
[380347063,1755699584486,-400.0,0.0003041,120]
[380347064,1755699584547,-2333.48,0.0003041,120]
[380347065,1755699584604,-400.0,0.0003041,120]
[380347066,1755699584669,-1256.84,0.0003041,120]
[380347067,1755699584727,-1160.18,0.0003041,120]
[380347068,1755699584785,-998.05,0.0003041,120]
[380347069,1755699584843,-886.49,0.0003041,120]
[380347070,1755699584905,-400.0,0.0003041,120]
[380347071,1755699584964,-400.0,0.0003041,120]
[380347072,1755699585023,-400.0,0.0003041,120]
[380347073,1755699585084,-400.0,0.0003041,120]
[380347074,1755699585144,-441.0,0.0003041,120]
[380347075,1755699585202,-400.0,0.0003041,120]
[380347076,1755699585265,-869.14,0.0003041,120]
[380347077,1755699585326,-467.11,0.0003041,120]
[380347078,1755699585386,-400.0,0.0003041,120]
[380347079,1755699585446,-591.81,0.0003041,120]
[380347080,1755699585507,-520.93,0.0003041,120]
[380347081,1755699585567,-1480.52,0.0003041,120]
[380347082,1755699585631,-1183.62,0.0003041,120]
[380347083,1755699585700,-400.0,0.0003041,120]
[380347084,1755699585760,-1936.61,0.0003041,120]
[380347085,1755699585821,-400.0,0.0003041,120]
[380347086,1755699585883,-412.33,0.0003041,120]
[380347087,1755699585945,-1159.31,0.0003041,120]
[380347088,1755699586004,-453.71,0.0003041,120]
[380347089,1755699586064,-1724.35,0.0003041,120]
[380347090,1755699586125,-1532.51,0.0003041,120]
[380347091,1755699586198,-400.0,0.0003041,120]
[380347092,1755699586264,-400.0,0.0003041,120]
[380347093,1755699586327,-1864.84,0.0003041,120]
[380347094,1755699586387,-400.0,0.0003041,120]
[380347095,1755699586453,-400.0,0.0003041,120]
[380347096,1755699586514,-745.4,0.0003041,120]
[380347097,1755699586571,-1639.83,0.0003041,120]
[380347098,1755699586631,-400.0,0.0003041,120]
[380347099,1755699586691,-600.64,0.0003041,120]
[380347100,1755699586750,-632.25,0.0003041,120]
[380347101,1755699586809,-400.0,0.0003041,120]
[380347102,1755699586872,-1137.34,0.0003041,120]
[380347103,1755699586944,-596.42,0.0003041,120]
[380347104,1755699587018,-1408.24,0.0003041,120]
[380347105,1755699587086,-400.0,0.0003041,120]
[380347106,1755699587149,-1176.75,0.0003041,120]
[380347107,1755699587211,-761.08,0.0003041,120]
[380347108,1755699587271,-400.0,0.0003041,120]
[380347109,1755699587329,-845.89,0.0003041,120]
[380347110,1755699587389,-400.0,0.0003041,120]
[380347111,1755699587451,-1695.35,0.0003041,120]
[380347112,1755699587511,-1506.88,0.0003041,120]
[380347113,1755699587569,-845.93,0.0003041,120]
[380347114,1755699587629,-400.0,0.0003041,120]
[380347115,1755699587691,-400.0,0.0003041,120]
[380347116,1755699587752,-400.0,0.0003041,120]
[380347117,1755699587811,-1187.13,0.0003041,120]
[380347118,1755699587866,-400.0,0.0003041,120]
[380347119,1755699587922,-1153.76,0.0003041,120]
[380347120,1755699588127,-1065.48,0.0003041,120]
[380347121,1755699588193,-400.0,0.0003041,120]
[380347122,1755699588254,-1368.35,0.0003041,120]
[380347123,1755699588315,-400.0,0.0003041,120]
[380347124,1755699588375,-1054.83,0.0003041,120]
[380347125,1755699588438,-1548.45,0.0003041,120]
[380347126,1755699588496,-1355.73,0.0003041,120]
[380347127,1755699588556,-704.62,0.0003041,120]
[380347128,1755699588617,-580.51,0.0003041,120]
[380347129,1755699588674,-2847.51,0.0003041,118]
[380347130,1755699588739,-866.3,0.0003041,120]
[380347131,1755699588804,-400.0,0.0003041,120]
[380347132,1755699588872,-400.0,0.0003041,120]
[380347133,1755699588937,-400.0,0.0003041,120]
[380347134,1755699588996,-400.0,0.0003041,120]
[380347135,1755699589060,-590.46,0.0003041,120]
[380347136,1755699589124,-400.0,0.0003041,120]
[380347137,1755699589188,-945.34,0.0003041,120]
[380347138,1755699589249,-400.0,0.0003041,120]
[380347139,1755699589310,-684.86,0.0003041,60]
[380347140,1755699589368,-1531.19,0.0003041,120]
[380347141,1755699589426,-1039.53,0.0003041,120]
[380347142,1755699589488,-2193.24,0.0003041,120]
[380347143,1755699589545,-400.0,0.0003041,120]
[380347144,1755699589605,-585.5,0.0003041,120]
[380347145,1755699589663,-400.0,0.0003041,120]
[380347146,1755699589718,-400.0,0.0003041,120]
[380347147,1755699589777,-1548.94,0.0003041,120]
[380347148,1755699589836,-400.0,0.0003041,120]
[380347149,1755699589895,-400.0,0.0003041,120]
[380347150,1755699589960,-1891.81,0.0003041,120]
[380347151,1755699590021,-1364.25,0.0003041,120]
[380347152,1755699590082,-579.11,0.0003041,120]
[380347153,1755699590142,-174.0412799,0.0003041,120]
[380347154,1755699590198,-400.0,0.0003041,120]
[380347155,1755699590257,-449.4,0.0003041,120]
[380347156,1755699590315,-2153.12,0.0003041,120]
[380347157,1755699590372,-400.0,0.0003041,120]
[380347158,1755699590435,-1698.03,0.0003041,120]
[380347159,1755699590495,-400.0,0.0003041,120]
[380347160,1755699590554,-711.86,0.0003041,120]
[380347161,1755699590615,-400.0,0.0003041,120]
[380347162,1755699590672,-521.43,0.0003041,120]
[380347163,1755699590732,-681.15,0.0003041,120]
[380347164,1755699590790,-871.73,0.0003041,120]
[380347165,1755699590847,-486.77,0.0003041,120]
[380347166,1755699590905,-400.0,0.0003041,120]
[380347167,1755699590974,-1062.72,0.0003041,120]
[380347168,1755699591053,-400.0,0.0003041,120]
[380347169,1755699591125,-913.3,0.0003041,120]
[380347170,1755699591190,-573.72,0.0003041,120]
[380347171,1755699591256,-2098.8,0.0003041,120]
[380347172,1755699591321,-1619.77,0.0003041,120]
[380347173,1755699591385,-400.0,0.0003041,120]
[380347174,1755699591448,-1731.51,0.0003041,120]
[380347175,1755699591509,-400.0,0.0003041,120]
[380347176,1755699591565,-400.0,0.0003041,120]
[380347177,1755699591623,-1319.43,0.0003041,120]
[380347178,1755699591681,-400.0,0.0003041,120]
[380347179,1755699591743,-338.29457575,0.0003041,120]
[380347180,1755699591805,-400.0,0.0003041,120]
[380347181,1755699591862,-557.55,0.0003041,120]
[380347182,1755699591918,-1503.61,0.0003041,120]
[380347183,1755699591977,-1070.9,0.0003041,120]
[380347184,1755699592037,-400.0,0.0003041,120]
[380347185,1755699592093,-475.88,0.0003041,120]
[380347186,1755699592164,-400.0,0.0003041,120]
[380347187,1755699592237,-2476.1,0.0003041,120]
[380347188,1755699592299,-444.24,0.0003041,120]
[380347189,1755699592359,-400.0,0.0003041,120]
[380347190,1755699592417,-400.0,0.0003041,120]
[380347191,1755699592474,-400.0,0.0003041,120]
[380347192,1755699592533,-400.0,0.0003041,120]
[380347193,1755699592590,-2033.73,0.0003041,120]
[380347194,1755699592651,-450.59,0.0003041,120]
[380347195,1755699592707,-752.66,0.0003041,120]
[380347196,1755699592765,-659.18,0.0003041,120]
[380347197,1755699592822,-1522.42,0.0003041,120]
[380347198,1755699592879,-183.4935373,0.0003041,120]
[380347199,1755699592934,-400.0,0.0003041,120]
[380347200,1755699592993,-1123.51,0.0003041,120]
[380347201,1755699593053,-1257.91,0.0003041,120]
[380347202,1755699593110,-1282.32,0.0003041,120]
[380347203,1755699593169,-400.0,0.0003041,120]
[380347204,1755699593230,-405.86,0.0003041,120]
[380347205,1755699593289,-796.64,0.0003041,120]
[380347206,1755699593346,-837.07,0.0003041,120]
[380347207,1755699593402,-509.03,0.0003041,120]
[380347208,1755699593458,-400.0,0.0003041,120]
[380347209,1755699593518,-1404.87,0.0003041,120]
[380347210,1755699593579,-1593.07,0.0003041,120]
[380347211,1755699593637,-400.0,0.0003041,120]
[380347212,1755699593697,-400.0,0.0003041,120]
[380347213,1755699593757,-1000.45,0.0003041,120]
[380347214,1755699593815,-1362.23,0.0003041,120]
[380347215,1755699593876,-400.0,0.0003041,120]
[380347216,1755699593937,-879.84,0.0003041,120]
[380347217,1755699593999,-740.39,0.0003041,120]
[380347218,1755699594063,-400.0,0.0003041,120]
[380347219,1755699594133,-848.4,0.0003041,120]
[380347220,1755699594199,-400.0,0.0003041,120]
[380347221,1755699594275,-400.0,0.0003041,120]
[380347222,1755699594349,-938.2,0.0003041,120]
[380347223,1755699594415,-1011.08,0.0003041,120]
[380347224,1755699594475,-439.18,0.0003041,120]
[380347225,1755699594533,-1012.21,0.0003041,120]
[380347226,1755699594592,-400.0,0.0003041,120]
[380347227,1755699594652,-450.64,0.0003041,120]
[380347228,1755699594714,-662.99,0.0003041,120]
[380347229,1755699594776,-215.09,0.0003041,120]
[380347230,1755699594837,-400.0,0.0003041,120]
[380347231,1755699594895,-1610.03,0.0003041,120]
[380347232,1755699594952,-400.0,0.0003041,120]
[380347233,1755699595008,-2610.64,0.0003041,120]
[380347234,1755699595065,-400.0,0.0003041,120]
[380347235,1755699595122,-2829.77,0.0003041,120]
[380347236,1755699595435,-1186.16,0.0003041,120]
[380347237,1755699595513,-1507.34,0.0003041,120]
[380347238,1755699595574,-788.34,0.0003041,120]
[380347239,1755699595634,-1200.18,0.0003041,120]
[380347240,1755699595696,-400.0,0.0003041,120]
[380347241,1755699595755,-1496.56,0.0003041,120]
[380347242,1755699595816,-478.39,0.0003041,120]
[380347243,1755699595875,-4128.21,0.0003041,120]
[380347244,1755699595936,-493.12,0.0003041,120]
[380347245,1755699596003,-400.0,0.0003041,120]
[380347246,1755699596060,-480.37,0.0003041,120]
[380347247,1755699596117,-400.0,0.0003041,120]
[380347248,1755699596173,-400.0,0.0003041,120]
[380347249,1755699596235,-400.0,0.0003041,120]
[380347250,1755699596291,-531.3,0.0003041,120]
[380347251,1755699596350,-545.92,0.0003041,120]
[380347252,1755699596407,-400.0,0.0003041,120]
[380347253,1755699596463,-1137.16,0.0003041,120]
[380347254,1755699596520,-400.0,0.0003041,120]
[380347255,1755699596577,-1167.63,0.0003041,120]
[380347256,1755699596632,-400.0,0.0003041,120]
[380347257,1755699596690,-953.47,0.0003041,120]
[380347258,1755699596745,-473.99,0.0003041,120]
[380347259,1755699596799,-1697.56,0.0003041,120]
[380347260,1755699596853,-498.2,0.0003041,120]
[380347261,1755699596907,-548.11,0.0003041,120]
[380347262,1755699596964,-1777.75,0.0003041,120]
[380347263,1755699597018,-400.0,0.0003041,120]
[380347264,1755699597077,-1325.4,0.0003041,120]
[380347265,1755699597134,-400.0,0.0003041,120]
[380347266,1755699597196,-1110.02,0.0003041,120]
[380347267,1755699597254,-400.0,0.0003041,120]
[380347268,1755699597309,-400.0,0.0003041,120]
[380347269,1755699597380,-517.12,0.0003041,120]
[380347270,1755699597446,-1286.09,0.0003041,120]
[380347271,1755699597506,-1578.48,0.0003041,120]
[380347272,1755699597565,-400.0,0.0003041,120]
[380347273,1755699597626,-400.0,0.0003041,120]
[380347274,1755699597691,-1620.86,0.0003041,120]
[380347275,1755699597750,-936.42,0.0003041,120]
[380347276,1755699597813,-1086.82,0.0003041,120]
[380347277,1755699597873,-400.0,0.0003041,120]
[380347278,1755699597933,-1486.98,0.0003041,120]
[380347279,1755699597999,-400.0,0.0003041,120]
[380347280,1755699598061,-817.11,0.0003041,120]
[380347281,1755699598121,-400.0,0.0003041,120]
[380347282,1755699598181,-400.0,0.0003041,120]
[380347283,1755699598242,-1255.84,0.0003041,120]
[380347284,1755699598302,-1564.8,0.0003041,120]
[380347285,1755699598364,-400.0,0.0003041,120]
[380347286,1755699598422,-781.56,0.0003041,120]
[380347287,1755699598482,-1039.45,0.0003041,120]
[380347288,1755699598548,-400.0,0.0003041,120]
[380347289,1755699598611,-2078.74,0.0003041,120]
[380347290,1755699598672,-400.0,0.0003041,120]
[380347291,1755699598736,-893.36,0.0003041,120]
[380347292,1755699598797,-400.0,0.0003041,120]
[380347293,1755699598860,-400.0,0.0003041,120]
[380347294,1755699598923,-400.0,0.0003041,120]
[380347295,1755699598985,-400.0,0.0003041,120]
[380347296,1755699599048,-1245.39,0.0003041,120]
[380347297,1755699599114,-1204.08,0.0003041,60]
[380347298,1755699599182,-421.99,0.0003041,120]
[380347299,1755699599250,-400.0,0.0003041,120]
[380347300,1755699599318,-400.0,0.0003041,120]
[380347301,1755699599387,-941.62,0.0003041,120]
[380347302,1755699599454,-1598.65,0.0003041,120]
[380347303,1755699599521,-602.42,0.0003041,120]
[380347304,1755699599588,-400.0,0.0003041,120]
[380347305,1755699599665,-400.0,0.0003041,120]
[380347306,1755699599734,-856.55,0.0003041,120]
[380347307,1755699599803,-510.19,0.0003041,120]
[380347308,1755699599869,-400.0,0.0003041,120]
[380347309,1755699599937,-429.33,0.0003041,120]
[380347310,1755699600003,-400.0,0.0003041,120]
[380347311,1755699600090,-400.0,0.0003041,120]
[380347312,1755699600161,-400.0,0.0003041,120]
[380347313,1755699600243,-400.0,0.0003041,120]
[380347314,1755699600327,-400.0,0.0003041,120]
[380347315,1755699600399,-1236.13,0.0003041,120]
[380347316,1755699600468,-400.0,0.0003041,120]
[380347317,1755699600539,-1012.24,0.0003041,120]
[380347318,1755699600608,-647.67,0.0003041,120]
[380347319,1755699600679,-1379.16,0.0003041,120]
[380347320,1755699600751,-1233.26,0.0003041,120]
[380347321,1755699600821,-734.09,0.0003041,120]
[380347322,1755699600887,-225.30518869,0.0003041,120]
[380347323,1755699600952,-1077.11,0.0003041,120]
[380347324,1755699601016,-400.0,0.0003041,120]
[380347325,1755699601082,-400.0,0.0003041,120]
[380347326,1755699601148,-1532.49,0.0003041,120]
[380347327,1755699601219,-400.0,0.0003041,120]
[380347328,1755699601286,-441.86,0.0003041,120]
[380347329,1755699601358,-433.19,0.0003041,120]
[380347330,1755699601431,-1145.11,0.0003041,120]
[380347331,1755699602077,-1060.13,0.0003041,120]
[380347332,1755699602149,-413.34,0.0003041,120]
[380347333,1755699602217,-880.42,0.0003041,120]
[380347334,1755699602283,-357.96460544,0.0003041,120]
[380347335,1755699602348,-1255.48,0.0003041,120]
[380347336,1755699602412,-2504.96,0.0003041,120]
[380347337,1755699602476,-999.26,0.0003041,120]
[380347338,1755699602539,-1510.54,0.0003041,120]
[380347339,1755699602619,-1280.77,0.0003041,120]
[380347340,1755699602696,-1687.01,0.0003041,120]
[380347341,1755699602759,-1130.7,0.0003041,120]
[380347342,1755699602826,-400.0,0.0003041,120]
[380347343,1755699602893,-796.52,0.0003041,120]
[380347344,1755699602959,-400.0,0.0003041,120]
[380347345,1755699603029,-1343.57,0.0003041,120]
[380347346,1755699603112,-628.89,0.0003041,120]
[380347347,1755699603186,-400.0,0.0003041,120]
[380347348,1755699603267,-400.0,0.0003041,120]
[380347349,1755699603344,-885.15,0.0003041,120]
[380347350,1755699603448,-1421.92,0.0003041,120]
[380347351,1755699603535,-704.81,0.0003041,120]
[380347352,1755699603613,-933.69,0.0003041,120]
[380347353,1755699603687,-509.28,0.0003041,120]
[380347354,1755699603766,-2622.35,0.0003041,120]
[380347355,1755699603836,-400.0,0.0003041,120]
[380347356,1755699603907,-400.0,0.0003041,120]
[380347357,1755699603977,-400.91,0.0003041,120]
[380347358,1755699604050,-400.0,0.0003041,120]
[380347359,1755699604127,-400.0,0.0003041,120]
[380347360,1755699604205,-1113.5,0.0003041,120]
[380347361,1755699604281,-1215.57,0.0003041,120]
[380347362,1755699604357,-400.0,0.0003041,120]
[380347363,1755699604431,-400.0,0.0003041,120]
[380347364,1755699604509,-400.0,0.0003041,120]
[380347365,1755699604584,-400.0,0.0003041,120]
[380347366,1755699604659,-400.0,0.0003041,120]
[380347367,1755699604735,-786.79,0.0003041,120]
[380347368,1755699604805,-1327.0,0.0003041,120]
[380347369,1755699604875,-400.0,0.0003041,120]
[380347370,1755699604945,-956.89,0.0003041,120]
[380347371,1755699605018,-400.0,0.0003041,120]
[380347372,1755699605088,-400.0,0.0003041,120]
[380347373,1755699605156,-535.63,0.0003041,120]
[380347374,1755699605224,-400.0,0.0003041,120]
[380347375,1755699605293,-1053.4,0.0003041,120]
[380347376,1755699605363,-400.0,0.0003041,120]
[380347377,1755699605432,-1448.66,0.0003041,120]
[380347378,1755699605504,-400.0,0.0003041,120]
[380347379,1755699605574,-1063.73,0.0003041,120]
[380347380,1755699605647,-400.0,0.0003041,120]
[380347381,1755699605723,-400.0,0.0003041,120]
[380347382,1755699605794,-400.0,0.0003041,120]
[380347383,1755699605864,-400.0,0.0003041,120]
[380347384,1755699605934,-1439.88,0.0003041,120]
[380347385,1755699606012,-400.0,0.0003041,120]
[380347386,1755699606087,-1143.51,0.0003041,120]
[380347387,1755699606162,-679.12,0.0003041,120]
[380347388,1755699606234,-400.0,0.0003041,120]
[380347389,1755699606303,-400.0,0.0003041,120]
[380347390,1755699606372,-400.0,0.0003041,120]
[380347391,1755699606441,-803.26,0.0003041,120]
[380347392,1755699606514,-400.0,0.0003041,120]
[380347393,1755699606582,-272.5362699,0.0003041,120]
[380347394,1755699606651,-400.0,0.0003041,120]
[380347395,1755699606720,-373.31433231,0.0003041,120]
[380347396,1755699606788,-593.92,0.0003041,120]
[380347397,1755699606858,-1270.29,0.0003041,120]
[380347398,1755699606927,-400.0,0.0003041,120]
[380347399,1755699607002,-400.0,0.0003041,120]
[380347400,1755699607071,-400.82,0.0003041,120]
[380347401,1755699607141,-1196.92,0.0003041,120]
[380347402,1755699607215,-312.56251099,0.0003041,120]
[380347403,1755699607288,-400.0,0.0003041,120]
[380347404,1755699607363,-684.53,0.0003041,120]
[380347405,1755699607438,-400.0,0.0003041,120]
[380347406,1755699607515,-400.0,0.0003041,120]
[380347407,1755699607585,-400.0,0.0003041,120]
[380347408,1755699607653,-400.0,0.0003041,120]
[380347409,1755699607721,-475.66,0.0003041,120]
[380347410,1755699607926,-1420.59,0.0003041,120]
[380347411,1755699607996,-1179.75,0.0003041,120]
[380347412,1755699608068,-1496.55,0.0003041,120]
[380347413,1755699608149,-652.74,0.0003041,120]
[380347414,1755699608237,-400.0,0.0003041,120]
[380347415,1755699608315,-400.71823838,0.0003041,120]
[380347416,1755699608391,-400.0,0.0003041,120]
[380347417,1755699608465,-510.1,0.0003041,120]
[380347418,1755699608533,-400.0,0.0003041,120]
[380347419,1755699608603,-979.82,0.0003041,120]
[380347420,1755699608670,-400.0,0.0003041,120]
[380347421,1755699608740,-400.0,0.0003041,120]
[380347422,1755699608809,-1331.61,0.0003041,120]
[380347423,1755699608879,-400.0,0.0003041,120]
[380347424,1755699608946,-959.51,0.0003041,120]
[380347425,1755699609019,-400.0,0.0003041,120]
[380347426,1755699609089,-555.31,0.0003041,120]
[380347427,1755699609158,-1680.55,0.0003041,120]
[380347428,1755699609229,-400.0,0.0003041,120]
[380347429,1755699609299,-400.0,0.0003041,120]
[380347430,1755699609370,-400.0,0.0003041,120]
[380347431,1755699609443,-2661.87,0.0003041,120]
[380347432,1755699609522,-1653.01,0.0003041,120]
[380347433,1755699609596,-448.08,0.0003041,120]
[380347434,1755699609669,-400.0,0.0003041,120]
[380347435,1755699609743,-1556.7,0.0003041,120]
[380347436,1755699609815,-400.0,0.0003041,120]
[380347437,1755699609883,-1740.16,0.0003041,120]
[380347438,1755699609961,-1220.88,0.0003041,120]
[380347439,1755699610035,-400.0,0.0003041,120]
[380347440,1755699610104,-400.0,0.0003041,120]
[380347441,1755699610176,-1798.35,0.0003041,120]
[380347442,1755699610245,-400.0,0.0003041,120]
[380347443,1755699610314,-400.0,0.0003041,120]
[380347444,1755699610385,-1173.93,0.0003041,120]
[380347445,1755699610460,-400.0,0.0003041,120]
[380347446,1755699610529,-400.0,0.0003041,120]
[380347447,1755699610598,-566.82,0.0003041,120]
[380347448,1755699610670,-476.87,0.0003041,120]
[380347449,1755699610737,-545.78,0.0003041,120]
[380347450,1755699610804,-400.0,0.0003041,120]
[380347451,1755699610872,-2356.97,0.0003041,120]
[380347452,1755699610940,-400.0,0.0003041,120]
[380347453,1755699611010,-1125.08,0.0003041,120]
[380347454,1755699611077,-400.0,0.0003041,120]
[380347455,1755699611146,-400.0,0.0003041,120]
[380347456,1755699611214,-423.58,0.0003041,120]
[380347457,1755699611284,-1496.83,0.0003041,120]
[380347458,1755699611355,-400.0,0.0003041,120]
[380347459,1755699611424,-400.0,0.0003041,120]
[380347460,1755699611492,-400.0,0.0003041,120]
[380347461,1755699611559,-400.0,0.0003041,120]
[380347462,1755699611626,-1032.76,0.0003041,120]
[380347463,1755699611695,-1772.07,0.0003041,120]
[380347464,1755699611766,-524.2634677,0.0003041,120]
[380347465,1755699611836,-400.0,0.0003041,120]
[380347466,1755699611920,-542.87,0.0003041,120]
[380347467,1755699611987,-921.14,0.0003041,120]
[380347468,1755699612054,-573.52,0.0003041,120]
[380347469,1755699612120,-400.0,0.0003041,120]
[380347470,1755699612190,-659.47,0.0003041,120]
[380347471,1755699612258,-400.0,0.0003041,120]
[380347472,1755699612327,-400.0,0.0003041,120]
[380347473,1755699612391,-400.0,0.0003041,120]
[380347474,1755699612460,-1775.6,0.0003041,120]
[380347475,1755699612528,-400.0,0.0003041,120]
[380347476,1755699612592,-1625.68,0.0003041,120]
[380347477,1755699612663,-400.0,0.0003041,120]
[380347478,1755699612734,-400.0,0.0003041,120]
[380347479,1755699612814,-1140.28,0.0003041,120]
[380347480,1755699612900,-764.54,0.0003041,120]
[380347481,1755699612987,-1450.77,0.0003041,120]
[380347482,1755699613059,-400.0,0.0003041,120]
[380347483,1755699613126,-1307.47,0.0003041,120]
[380347484,1755699613194,-455.37,0.0003041,120]
[380347485,1755699613267,-400.0,0.0003041,120]
[380347486,1755699613336,-224.51713142,0.0003041,120]
[380347487,1755699613404,-411.1,0.0003041,120]
[380347488,1755699613472,-1692.63,0.0003041,120]